[Event "Saint Louis Masters"]
[Date "2024.12.06"]
[White "Sevian, Samuel"]
[Black "Kacharava, Nikolozi"]
[WhiteElo "2696"]
[BlackElo "2510"]
[Round "8.4"]
[Result "1-0"]
[TimeControl "5400+30"]

1. c4 {[%clk 01:28:08] [%emt 00:02:51]} c5 {[%clk 01:30:09] [%emt 00:00:51]} 2.
Nf3 {[%clk 01:28:26] [%emt 00:00:13]} Nf6 {[%clk 01:30:19] [%emt 00:00:19]} 3.
Nc3 {[%clk 01:28:30] [%emt 00:00:26]} Nc6 {[%clk 01:30:28] [%emt 00:00:21]} 4.
g3 {[%clk 01:28:21] [%emt 00:00:39]} d5 {[%clk 01:30:15] [%emt 00:00:43]} 5.
cxd5 {[%clk 01:28:30] [%emt 00:00:21]} Nxd5 {[%clk 01:30:38] [%emt 00:00:07]} 6.
Bg2 {[%clk 01:28:53] [%emt 00:00:07]} Nc7 {[%clk 01:30:20] [%emt 00:00:48]} 7.
d3 {[%clk 01:28:55] [%emt 00:00:27]} e5 {[%clk 01:28:55] [%emt 00:01:56]} 8. Nd2
{[%clk 01:29:05] [%emt 00:00:20]} Bd7 {[%clk 01:26:17] [%emt 00:03:09]} 9. O-O
{[%clk 01:29:20] [%emt 00:00:14]} Be7 {[%clk 01:25:50] [%emt 00:00:57]} 10. Nc4
{[%clk 01:29:36] [%emt 00:00:14]} f6 {[%clk 01:25:12] [%emt 00:01:08]} 11. f4
{[%clk 01:29:41] [%emt 00:00:25]} b5 {[%clk 01:24:20] [%emt 00:01:22]} 12. Ne3
{[%clk 01:29:51] [%emt 00:00:20]} O-O {[%clk 01:23:34] [%emt 00:01:17]} 13. fxe5
{[%clk 01:21:18] [%emt 00:09:03]} Nxe5 {[%clk 01:23:18] [%emt 00:00:46]} 14. Nf5
{[%clk 01:06:04] [%emt 00:15:44]} Rb8 {[%clk 01:18:32] [%emt 00:05:16]} 15. Kh1
{[%clk 01:04:52] [%emt 00:01:41]} Bc6 {[%emt 00:32:30]} 16. Bxc6 {[%clk
00:50:26] [%emt 00:00:02]} Nxc6 {[%clk 01:01:53] [%emt 00:00:04]} 17. Bf4 {[%clk
00:50:41] [%emt 00:00:14]} g6 {[%clk 00:31:29] [%emt 00:30:54]} 18. Nxe7+ {[%clk
00:42:26] [%emt 00:08:45]} Qxe7 {[%clk 00:28:49] [%emt 00:03:10]} 19. a4 {[%clk
00:40:13] [%emt 00:02:43]} b4 {[%clk 00:24:52] [%emt 00:04:28]} 20. Ne4 {[%clk
00:38:53] [%emt 00:01:50]} Ne5 {[%clk 00:24:08] [%emt 00:01:13]} 21. Qb3+ {[%clk
00:31:49] [%emt 00:07:35]} Kg7 {[%clk 00:23:23] [%emt 00:01:14]} 22. Rac1 {[%clk
00:32:05] [%emt 00:00:14]} Na6 {[%clk 00:15:17] [%emt 00:08:37]} 23. a5 {[%clk
00:25:46] [%emt 00:06:49]} Rbc8 {[%clk 00:10:50] [%emt 00:04:57]} 24. Qa4 {[%clk
00:22:29] [%emt 00:03:46]} Nb8 {[%clk 00:06:09] [%emt 00:05:12]} 25. b3 {[%clk
00:20:32] [%emt 00:02:26]} Nbd7 {[%clk 00:05:13] [%emt 00:01:27]} 26. Qb5 {[%clk
00:19:27] [%emt 00:01:35]} Rb8 {[%clk 00:01:06] [%emt 00:04:36]} 27. Qa6 {[%clk
00:18:39] [%emt 00:01:18]} f5 {[%clk 00:01:10] [%emt 00:00:26]} 28. Qxa7 {[%clk
00:15:25] [%emt 00:03:44]} fxe4 {[%clk 00:00:34] [%emt 00:01:07]} 29. Bxe5+
{[%clk 00:15:44] [%emt 00:00:11]} Qxe5 {[%clk 00:00:55] [%emt 00:00:09]} 30.
Qxd7+ {[%clk 00:16:06] [%emt 00:00:07]} Kh6 {[%clk 00:01:07] [%emt 00:00:18]}
31. a6 {[%clk 00:12:30] [%emt 00:04:06]} exd3 {[%clk 00:01:31] [%emt 00:00:05]}
32. Rxf8 {[%clk 00:11:24] [%emt 00:01:36]} Rxf8 {[%clk 00:01:04] [%emt
00:00:58]} 33. Qxd3 {[%clk 00:11:50] [%emt 00:00:03]} Rf7 {[%clk 00:00:55] [%emt
00:00:40]} 34. Kg2 {[%clk 00:09:22] [%emt 00:02:58]} Kg7 {[%clk 00:00:35] [%emt
00:00:51]} 35. Rc4 {[%clk 00:07:32] [%emt 00:02:20]} Re7 {[%clk 00:00:33] [%emt
00:00:31]} 36. Rc2 {[%clk 00:07:37] [%emt 00:00:25]} Qe6 {[%clk 00:00:35] [%emt
00:00:28]} 37. Rxc5 {[%clk 00:06:27] [%emt 00:01:41]} Qxe2+ {[%clk 00:00:59]
[%emt 00:00:06]} 38. Qxe2 {[%clk 00:06:52] [%emt 00:00:04]} Rxe2+ {[%clk
00:01:26] [%emt 00:00:02]} 39. Kf3 {[%clk 00:07:12] [%emt 00:00:10]} Ra2 {[%clk
00:01:52] [%emt 00:00:05]} 40. Rc7+ {[%clk 00:07:39] [%emt 00:00:03]} Kf6 {[%clk
00:02:18] [%emt 00:00:04]} 41. a7 {[%clk 00:07:43] [%emt 00:00:26]} h5 {[%clk
00:00:55] [%emt 00:01:52]} 42. Ke4 {[%clk 00:08:04] [%emt 00:00:10]} Ke6 {[%clk
00:00:34] [%emt 00:00:51]} 43. Kd4 {[%clk 00:08:07] [%emt 00:00:27]} Kf5 {[%clk
00:00:35] [%emt 00:00:29]} 44. Kc5 {[%clk 00:08:05] [%emt 00:00:32]} Kg4 {[%clk
00:00:47] [%emt 00:00:17]} 45. Kb6 {[%clk 00:08:31] [%emt 00:00:04]} Kh3 {[%clk
00:01:01] [%emt 00:00:16]} 46. Rg7 {[%clk 00:08:57] [%emt 00:00:04]} 1-0

[Site "Europe Echecs"]

[Event "Saint Louis Masters"]
[Date "2024.12.06"]
[White "Donchenko, Alexander"]
[Black "Dudin, Gleb"]
[WhiteElo "2618"]
[BlackElo "2506"]
[Round "8.5"]
[Result "1-0"]
[TimeControl "5400+30"]

1. d4 {[%clk 01:30:58] [%emt 00:00:01]} d5 {[%clk 01:28:24] [%emt 00:02:36]} 2.
c4 {[%clk 01:29:32] [%emt 00:01:57]} e6 {[%clk 01:28:45] [%emt 00:00:09]} 3. Nc3
{[%clk 01:27:18] [%emt 00:02:45]} Nf6 {[%clk 01:28:49] [%emt 00:00:25]} 4. Nf3
{[%clk 01:27:22] [%emt 00:00:25]} Nbd7 {[%clk 01:28:58] [%emt 00:00:21]} 5. g3
{[%clk 01:23:31] [%emt 00:04:22]} Be7 {[%clk 01:26:44] [%emt 00:02:43]} 6. Bg2
{[%clk 01:23:02] [%emt 00:00:59]} O-O {[%clk 01:26:39] [%emt 00:00:36]} 7. Qd3
{[%clk 01:21:07] [%emt 00:02:25]} b6 {[%clk 01:26:48] [%emt 00:00:21]} 8. cxd5
{[%clk 01:20:49] [%emt 00:00:48]} Nxd5 {[%clk 01:27:06] [%emt 00:00:11]} 9. O-O
{[%clk 01:18:06] [%emt 00:03:13]} Bb7 {[%clk 01:25:33] [%emt 00:02:04]} 10. Rd1
{[%clk 01:17:13] [%emt 00:01:23]} c5 {[%clk 01:13:08] [%emt 00:12:55]} 11. e4
{[%clk 01:12:01] [%emt 00:05:41]} Nxc3 {[%clk 01:11:11] [%emt 00:02:27]} 12.
bxc3 {[%clk 01:12:23] [%emt 00:00:08]} Rc8 {[%clk 01:05:45] [%emt 00:05:56]} 13.
a4 {[%clk 01:04:31] [%emt 00:08:23]} h6 {[%clk 01:03:50] [%emt 00:02:25]} 14.
Bf4 {[%clk 00:57:17] [%emt 00:07:43]} Re8 {[%clk 00:55:27] [%emt 00:08:53]} 15.
d5 {[%clk 00:47:14] [%emt 00:10:34]} exd5 {[%clk 00:43:03] [%emt 00:12:54]} 16.
exd5 {[%clk 00:47:37] [%emt 00:00:07]} Bf6 {[%clk 00:43:02] [%emt 00:00:30]} 17.
Qc4 {[%clk 00:44:04] [%emt 00:04:04]} Nf8 {[%clk 00:29:36] [%emt 00:13:56]} 18.
a5 {[%clk 00:38:36] [%emt 00:05:59]} Qd7 {[%clk 00:26:55] [%emt 00:03:10]} 19.
axb6 {[%clk 00:38:31] [%emt 00:00:36]} axb6 {[%clk 00:27:20] [%emt 00:00:05]}
20. Rab1 {[%clk 00:35:30] [%emt 00:03:30]} Rcd8 {[%clk 00:22:18] [%emt
00:05:31]} 21. Qb3 {[%clk 00:25:33] [%emt 00:10:28]} b5 {[%clk 00:20:45] [%emt
00:02:03]} 22. c4 {[%clk 00:24:28] [%emt 00:01:36]} b4 {[%clk 00:19:49] [%emt
00:01:25]} 23. Be3 {[%clk 00:24:44] [%emt 00:00:14]} Qc7 {[%clk 00:17:18] [%emt
00:02:57]} 24. Nd2 {[%clk 00:24:27] [%emt 00:00:51]} Nd7 {[%clk 00:16:56] [%emt
00:00:51]} 25. Ne4 {[%clk 00:23:56] [%emt 00:01:02]} Ba6 {[%clk 00:08:53] [%emt
00:08:33]} 26. Qa2 {[%clk 00:21:07] [%emt 00:03:19]} Qb6 {[%clk 00:06:45] [%emt
00:02:38]} 27. h4 {[%clk 00:19:02] [%emt 00:02:34]} Be5 {[%clk 00:06:04] [%emt
00:01:11]} 28. g4 {[%clk 00:13:47] [%emt 00:05:46]} Ra8 {[%clk 00:05:21] [%emt
00:01:13]} 29. Qe2 {[%clk 00:11:45] [%emt 00:02:32]} Rac8 {[%clk 00:03:08] [%emt
00:02:42]} 30. Qa2 {[%clk 00:07:51] [%emt 00:04:24]} Bb7 {[%clk 00:01:14] [%emt
00:02:24]} 31. g5 {[%clk 00:05:37] [%emt 00:02:44]} f5 {[%clk 00:00:59] [%emt
00:00:45]} 32. Bh3 {[%clk 00:04:37] [%emt 00:01:31]} Qg6 {[%clk 00:00:36] [%emt
00:00:53]} 33. Qe2 {[%clk 00:04:21] [%emt 00:00:45]} Rf8 {[%clk 00:00:33] [%emt
00:00:33]} 34. h5 {[%clk 00:04:05] [%emt 00:00:46]} Qe8 {[%clk 00:00:45] [%emt
00:00:18]} 35. f4 {[%clk 00:03:16] [%emt 00:01:19]} fxe4 {[%clk 00:00:33] [%emt
00:00:42]} 36. Be6+ {[%clk 00:03:12] [%emt 00:00:34]} Kh8 {[%clk 00:00:43] [%emt
00:00:20]} 37. Qg4 {[%clk 00:01:35] [%emt 00:02:07]} Bd4 {[%clk 00:00:32] [%emt
00:00:42]} 38. Rxd4 {[%clk 00:01:05] [%emt 00:01:00]} cxd4 {[%clk 00:00:54]
[%emt 00:00:07]} 39. Bxd4 {[%clk 00:01:31] [%emt 00:00:04]} Rc7 {[%clk 00:00:33]
[%emt 00:00:51]} 40. d6 {[%clk 00:01:28] [%emt 00:00:34]} Nc5 {[%clk 00:00:35]
[%emt 00:00:27]} 41. f5 {[%clk 00:00:37] [%emt 00:01:22]} Nxe6 {[%clk 00:00:39]
[%emt 00:00:25]} 42. fxe6 {[%clk 00:01:06]} Kh7 {[%clk 00:00:32] [%emt
00:00:38]} 43. dxc7 {[%clk 00:01:11] [%emt 00:00:24]} e3 {[%clk 00:00:32] [%emt
00:00:30]} 44. gxh6 {[%clk 00:01:21] [%emt 00:00:21]} Rg8 {[%clk 00:00:31] [%emt
00:00:30]} 45. Bxg7 {[%clk 00:01:11] [%emt 00:00:40]} 1-0

[Site "Europe Echecs"]

[Event "Saint Louis Masters"]
[Date "2024.12.06"]
[White "Zhou, Jianchao"]
[Black "Cordova, Emilio"]
[WhiteElo "2572"]
[BlackElo "2531"]
[Round "8.6"]
[Result "1-0"]
[TimeControl "5400+30"]

1. d4 {[%clk 01:27:23] [%emt 00:03:36]} Nf6 {[%clk 01:30:01] [%emt 00:00:59]} 2.
c4 {[%clk 01:26:46] [%emt 00:01:07]} e6 {[%clk 01:30:19] [%emt 00:00:12]} 3. Nf3
{[%clk 01:27:04] [%emt 00:00:12]} Bb4+ {[%clk 01:29:43] [%emt 00:01:05]} 4. Nbd2
{[%clk 01:27:30] [%emt 00:00:04]} b6 {[%clk 01:29:22] [%emt 00:00:52]} 5. a3
{[%clk 01:27:33] [%emt 00:00:26]} Bxd2+ {[%clk 01:29:47] [%emt 00:00:06]} 6.
Qxd2 {[%clk 01:22:44] [%emt 00:05:19]} Bb7 {[%clk 01:29:53] [%emt 00:00:21]} 7.
e3 {[%clk 01:22:53] [%emt 00:00:23]} O-O {[%clk 01:29:54] [%emt 00:00:28]} 8.
Be2 {[%clk 01:22:59] [%emt 00:00:24]} d5 {[%clk 01:29:56] [%emt 00:00:28]} 9. b3
{[%clk 01:23:07] [%emt 00:00:23]} Nbd7 {[%clk 01:30:06] [%emt 00:00:20]} 10. O-O
{[%clk 01:22:07] [%emt 00:01:30]} c5 {[%clk 01:29:47] [%emt 00:00:48]} 11. Bb2
{[%clk 01:20:46] [%emt 00:01:52]} Rc8 {[%clk 01:29:54] [%emt 00:00:22]} 12. Rfc1
{[%clk 01:19:18] [%emt 00:01:59]} Qe7 {[%clk 01:17:00] [%emt 00:13:24]} 13. a4
{[%clk 01:17:57] [%emt 00:01:51]} a5 {[%clk 01:15:32] [%emt 00:01:58]} 14. Qe1
{[%clk 01:15:38] [%emt 00:02:49]} Rfd8 {[%clk 01:15:25] [%emt 00:00:36]} 15. h3
{[%clk 01:14:42] [%emt 00:01:27]} h6 {[%clk 01:14:40] [%emt 00:01:14]} 16. Ra2
{[%clk 01:10:05] [%emt 00:05:08]} Ne4 {[%clk 01:13:44] [%emt 00:01:24]} 17. Bf1
{[%clk 01:09:37] [%emt 00:00:59]} dxc4 {[%clk 01:08:30] [%emt 00:05:45]} 18.
bxc4 {[%clk 01:06:54] [%emt 00:03:13]} Nb8 {[%clk 01:06:24] [%emt 00:02:35]} 19.
Nd2 {[%clk 01:00:49] [%emt 00:06:35]} Nxd2 {[%clk 01:05:20] [%emt 00:01:33]} 20.
Qxd2 {[%clk 01:01:17] [%emt 00:00:03]} Nc6 {[%clk 01:04:58] [%emt 00:00:52]} 21.
Rd1 {[%clk 01:01:11] [%emt 00:00:36]} Qg5 {[%clk 00:50:36] [%emt 00:14:52]} 22.
Qc3 {[%clk 00:55:11] [%emt 00:06:31]} cxd4 {[%clk 00:42:39] [%emt 00:08:26]} 23.
exd4 {[%clk 00:55:39] [%emt 00:00:03]} Ne5 {[%clk 00:42:17] [%emt 00:00:51]} 24.
d5 {[%clk 00:51:16] [%emt 00:04:53]} Nxc4 {[%clk 00:32:46] [%emt 00:10:01]} 25.
Bxc4 {[%clk 00:45:08] [%emt 00:06:38]} Bxd5 {[%clk 00:09:01] [%emt 00:24:14]}
26. Rxd5 {[%clk 00:44:08] [%emt 00:01:31]} exd5 {[%clk 00:09:27] [%emt
00:00:04]} 27. f4 {[%clk 00:43:29] [%emt 00:01:09]} Qg6 {[%clk 00:09:39] [%emt
00:00:17]} 28. Bd3 {[%clk 00:43:16] [%emt 00:00:43]} Rxc3 {[%clk 00:10:04] [%emt
00:00:05]} 29. Bxg6 {[%clk 00:43:42] [%emt 00:00:04]} Rc4 {[%clk 00:10:28] [%emt
00:00:07]} 30. Bd3 {[%clk 00:43:38] [%emt 00:00:32]} Rxf4 {[%clk 00:10:54] [%emt
00:00:06]} 31. Be5 {[%clk 00:43:03] [%emt 00:01:04]} Rb4 {[%clk 00:11:20] [%emt
00:00:05]} 32. Bb5 {[%clk 00:41:56] [%emt 00:01:36]} Rc8 {[%clk 00:11:42] [%emt
00:00:08]} 33. Kh2 {[%clk 00:39:48] [%emt 00:02:39]} Rc1 {[%clk 00:07:31] [%emt
00:04:41]} 34. Rd2 {[%clk 00:38:37] [%emt 00:01:41]} Rc5 {[%clk 00:07:42] [%emt
00:00:20]} 35. Bd7 {[%clk 00:38:19] [%emt 00:00:48]} Re4 {[%clk 00:07:00] [%emt
00:01:11]} 36. Bd4 {[%clk 00:37:55] [%emt 00:00:52]} Rc7 {[%clk 00:02:49] [%emt
00:04:42]} 37. Bf5 {[%clk 00:33:22] [%emt 00:05:03]} Rc4 {[%clk 00:03:14] [%emt
00:00:04]} 38. Bxb6 {[%clk 00:33:21] [%emt 00:00:32]} Re8 {[%clk 00:01:35] [%emt
00:02:09]} 39. Bd7 {[%clk 00:31:57] [%emt 00:01:54]} Rb8 {[%clk 00:00:34] [%emt
00:01:30]} 40. Bg1 {[%clk 00:28:12] [%emt 00:04:15]} Rd8 {[%clk 00:00:33] [%emt
00:00:31]} 41. Bb5 {[%clk 00:27:54] [%emt 00:00:47]} Rb4 {[%clk 00:00:56] [%emt
00:00:09]} 42. Bc5 {[%clk 00:27:56] [%emt 00:00:27]} Re4 {[%clk 00:01:08] [%emt
00:00:18]} 43. Bb6 {[%clk 00:17:50] [%emt 00:10:36]} Rb8 {[%clk 00:01:28] [%emt
00:00:10]} 44. Bxa5 {[%clk 00:17:50] [%emt 00:00:30]} Ra8 {[%clk 00:01:54] [%emt
00:00:04]} 45. Bb6 {[%clk 00:17:46] [%emt 00:00:34]} Rexa4 {[%clk 00:02:20]
[%emt 00:00:04]} 46. Bxa4 {[%clk 00:18:11] [%emt 00:00:05]} Rxa4 {[%clk
00:02:47] [%emt 00:00:03]} 47. Rxd5 {[%clk 00:18:34] [%emt 00:00:07]} f6 {[%clk
00:03:13] [%emt 00:00:04]} 48. Kg3 {[%clk 00:18:17] [%emt 00:00:46]} Rb4 {[%clk
00:03:33] [%emt 00:00:10]} 49. Be3 {[%clk 00:18:32] [%emt 00:00:15]} Rb7 {[%clk
00:03:59] [%emt 00:00:05]} 50. h4 {[%clk 00:18:20] [%emt 00:00:41]} Kh7 {[%clk
00:04:14] [%emt 00:00:16]} 51. h5 {[%clk 00:18:36] [%emt 00:00:14]} Rb3 {[%clk
00:04:35] [%emt 00:00:09]} 52. Kf3 {[%clk 00:18:57] [%emt 00:00:09]} Ra3 {[%clk
00:04:44] [%emt 00:00:21]} 53. Kf2 {[%clk 00:19:04] [%emt 00:00:22]} Ra4 {[%clk
00:05:07] [%emt 00:00:08]} 54. g3 {[%clk 00:18:56] [%emt 00:00:38]} Rb4 {[%clk
00:05:29] [%emt 00:00:09]} 55. Bf4 {[%clk 00:19:18] [%emt 00:00:07]} Rb3 {[%clk
00:05:53] [%emt 00:00:06]} 56. Rc5 {[%clk 00:19:32] [%emt 00:00:16]} Ra3 {[%clk
00:06:19] [%emt 00:00:04]} 57. Kg2 {[%clk 00:19:42] [%emt 00:00:20]} Ra2+ {[%clk
00:06:30] [%emt 00:00:18]} 58. Kh3 {[%clk 00:20:04] [%emt 00:00:08]} Ra4 {[%clk
00:06:44] [%emt 00:00:17]} 59. Kg4 {[%clk 00:20:26] [%emt 00:00:08]} g5 {[%clk
00:06:41] [%emt 00:00:32]} 60. hxg6+ {[%clk 00:19:43] [%emt 00:01:14]} Kxg6
{[%clk 00:07:07] [%emt 00:00:04]} 61. Rh5 {[%clk 00:19:31] [%emt 00:00:42]} Kg7
{[%clk 00:07:30] [%emt 00:00:06]} 62. Rh4 {[%clk 00:18:39] [%emt 00:01:23]} Rb4
{[%clk 00:07:48] [%emt 00:00:12]} 63. Kh3 {[%clk 00:18:54] [%emt 00:00:14]} Rb1
{[%clk 00:08:02] [%emt 00:00:17]} 64. Bxh6+ {[%clk 00:19:06] [%emt 00:00:17]}
Kg6 {[%clk 00:08:27] [%emt 00:00:05]} 65. Bf4 {[%clk 00:19:20] [%emt 00:00:16]}
Rb5 {[%clk 00:08:46] [%emt 00:00:11]} 66. Kg4 {[%clk 00:19:33] [%emt 00:00:17]}
Ra5 {[%clk 00:09:11] [%emt 00:00:06]} 67. Rh6+ {[%clk 00:18:46] [%emt 00:01:17]}
Kg7 {[%clk 00:09:34] [%emt 00:00:07]} 68. Rh5 {[%clk 00:19:08] [%emt 00:00:08]}
Ra4 {[%clk 00:09:57] [%emt 00:00:07]} 69. Rd5 {[%clk 00:18:39] [%emt 00:00:59]}
Kg6 {[%clk 00:10:20] [%emt 00:00:07]} 70. Kf3 {[%clk 00:18:54] [%emt 00:00:15]}
Rb4 {[%clk 00:10:43] [%emt 00:00:07]} 71. Be3 {[%clk 00:17:12] [%emt 00:02:12]}
Ra4 {[%clk 00:11:04] [%emt 00:00:08]} 72. Bd4 {[%clk 00:15:58] [%emt 00:01:45]}
Ra6 {[%clk 00:11:20] [%emt 00:00:15]} 73. Rb5 {[%clk 00:15:19] [%emt 00:01:07]}
Ra3+ {[%clk 00:11:35] [%emt 00:00:15]} 74. Kg2 {[%clk 00:15:33] [%emt 00:00:16]}
Ra2+ {[%clk 00:11:56] [%emt 00:00:10]} 75. Kh3 {[%clk 00:15:57] [%emt 00:00:05]}
Rd2 {[%clk 00:12:19] [%emt 00:00:07]} 76. Bb2 {[%clk 00:16:05] [%emt 00:00:22]}
Rf2 {[%clk 00:12:40] [%emt 00:00:09]} 77. Rb6 {[%clk 00:16:19] [%emt 00:00:17]}
Kg5 {[%clk 00:12:57] [%emt 00:00:13]} 78. Bxf6+ {[%clk 00:16:31] [%emt
00:00:17]} Rxf6 {[%clk 00:13:21] [%emt 00:00:06]} 79. Rxf6 {[%clk 00:16:58]
[%emt 00:00:04]} Kxf6 {[%clk 00:13:45] [%emt 00:00:06]} 80. Kh4 {[%clk 00:17:23]
[%emt 00:00:05]} 1-0

[Site "Europe Echecs"]

[Event "Saint Louis Masters"]
[Date "2024.12.06"]
[White "Nyzhnyk, Illya"]
[Black "Shankland, Sam"]
[WhiteElo "2564"]
[BlackElo "2672"]
[Round "8.7"]
[Result "0-1"]
[TimeControl "5400+30"]

1. e4 {[%clk 01:29:24] [%emt 00:01:35]} c5 {[%clk 01:30:48] [%emt 00:00:12]} 2.
Nf3 {[%clk 01:29:42] [%emt 00:00:12]} d6 {[%clk 01:31:15] [%emt 00:00:04]} 3.
Bb5+ {[%clk 01:29:27] [%emt 00:00:45]} Nd7 {[%clk 01:31:27] [%emt 00:00:18]} 4.
O-O {[%clk 01:29:47] [%emt 00:00:09]} a6 {[%clk 01:31:54] [%emt 00:00:04]} 5.
Bxd7+ {[%clk 01:30:13] [%emt 00:00:05]} Bxd7 {[%clk 01:32:17] [%emt 00:00:07]}
6. c3 {[%clk 01:30:35] [%emt 00:00:07]} e6 {[%clk 01:32:25] [%emt 00:00:23]} 7.
d4 {[%clk 01:30:48] [%emt 00:00:16]} Ne7 {[%clk 01:32:37] [%emt 00:00:17]} 8.
dxc5 {[%clk 01:20:10] [%emt 00:11:09]} dxc5 {[%clk 01:33:04] [%emt 00:00:03]} 9.
Qe2 {[%clk 01:20:36] [%emt 00:00:03]} Ng6 {[%clk 01:32:12] [%emt 00:01:22]} 10.
Rd1 {[%clk 01:20:09] [%emt 00:00:57]} Qc7 {[%clk 01:29:31] [%emt 00:03:11]} 11.
Nbd2 {[%clk 01:15:43] [%emt 00:04:56]} Be7 {[%clk 01:26:07] [%emt 00:03:54]} 12.
g3 {[%clk 01:09:56] [%emt 00:06:17]} Bc6 {[%clk 01:20:50] [%emt 00:05:47]} 13.
b3 {[%clk 01:04:19] [%emt 00:06:08]} h5 {[%clk 01:10:05] [%emt 00:11:15]} 14.
Bb2 {[%clk 01:04:19] [%emt 00:00:29]} h4 {[%clk 01:09:51] [%emt 00:00:45]} 15.
c4 {[%clk 01:04:25] [%emt 00:00:24]} O-O-O {[%clk 01:07:23] [%emt 00:02:56]} 16.
e5 {[%clk 00:57:51] [%emt 00:07:05]} b6 {[%clk 01:06:11] [%emt 00:01:43]} 17.
Ne4 {[%clk 00:57:39] [%emt 00:00:40]} Bb7 {[%clk 01:06:04] [%emt 00:00:37]} 18.
Rxd8+ {[%clk 00:52:51] [%emt 00:05:19]} Rxd8 {[%clk 01:06:22] [%emt 00:00:13]}
19. Re1 {[%clk 00:53:09] [%emt 00:00:11]} Qc6 {[%clk 01:05:53] [%emt 00:00:59]}
20. Qe3 {[%clk 00:45:51] [%emt 00:07:48]} Kb8 {[%clk 01:03:38] [%emt 00:02:45]}
21. Kf1 {[%clk 00:45:48] [%emt 00:00:34]} Ka7 {[%clk 01:01:30] [%emt 00:02:38]}
22. Nfd2 {[%clk 00:41:26] [%emt 00:04:51]} hxg3 {[%clk 00:58:43] [%emt
00:03:17]} 23. hxg3 {[%clk 00:41:48] [%emt 00:00:08]} Qc7 {[%clk 00:53:41] [%emt
00:05:33]} 24. Nf3 {[%clk 00:38:27] [%emt 00:03:51]} Qd7 {[%clk 00:51:04] [%emt
00:03:08]} 25. Ke2 {[%clk 00:34:35] [%emt 00:04:20]} f5 {[%clk 00:46:37] [%emt
00:04:58]} 26. exf6 {[%clk 00:34:47] [%emt 00:00:18]} gxf6 {[%clk 00:47:05]
[%emt 00:00:02]} 27. Bxf6 {[%clk 00:34:18] [%emt 00:00:59]} Bxf6 {[%clk
00:45:35] [%emt 00:02:00]} 28. Nxf6 {[%clk 00:34:42] [%emt 00:00:05]} Qg7 {[%clk
00:45:31] [%emt 00:00:34]} 29. Ne4 {[%clk 00:31:35] [%emt 00:03:37]} Qb2+ {[%clk
00:45:30] [%emt 00:00:31]} 30. Kf1 {[%clk 00:31:39] [%emt 00:00:26]} Qxa2 {[%clk
00:45:36] [%emt 00:00:25]} 31. Qc3 {[%clk 00:25:17] [%emt 00:06:52]} Qa3 {[%clk
00:45:10] [%emt 00:00:56]} 32. Ra1 {[%clk 00:20:56] [%emt 00:04:51]} Qb4 {[%clk
00:45:35] [%emt 00:00:05]} 33. Qe3 {[%clk 00:21:22] [%emt 00:00:04]} Bxe4 {[%clk
00:42:56] [%emt 00:03:09]} 34. Qxe4 {[%clk 00:21:39] [%emt 00:00:12]} Qxb3
{[%clk 00:43:12] [%emt 00:00:15]} 35. Kg2 {[%clk 00:21:30] [%emt 00:00:38]} Qd3
{[%clk 00:36:08] [%emt 00:07:35]} 36. Qxe6 {[%clk 00:20:53] [%emt 00:01:08]} a5
{[%clk 00:35:24] [%emt 00:01:13]} 37. Rh1 {[%clk 00:20:15] [%emt 00:01:07]} Rf8
{[%clk 00:33:16] [%emt 00:02:39]} 38. Ng5 {[%clk 00:15:09] [%emt 00:05:36]} Qf5
{[%clk 00:31:20] [%emt 00:02:25]} 39. Qxf5 {[%clk 00:14:27] [%emt 00:01:12]}
Rxf5 {[%clk 00:31:49] [%emt 00:00:01]} 40. Ne6 {[%clk 00:13:12] [%emt 00:01:44]}
Re5 {[%clk 00:31:10] [%emt 00:01:09]} 41. Rh7+ {[%clk 00:12:21] [%emt 00:01:21]}
Kb8 {[%clk 00:31:02] [%emt 00:00:38]} 42. Nd8 {[%clk 00:12:21] [%emt 00:00:30]}
Kc8 {[%clk 00:29:42] [%emt 00:01:51]} 43. Nc6 {[%clk 00:12:47] [%emt 00:00:04]}
Re6 {[%clk 00:28:29] [%emt 00:01:43]} 44. Na7+ {[%clk 00:13:13] [%emt 00:00:04]}
Kb8 {[%clk 00:27:42] [%emt 00:01:17]} 45. f4 {[%clk 00:13:18] [%emt 00:00:25]}
Rf6 {[%clk 00:25:42] [%emt 00:02:30]} 46. Kf3 {[%clk 00:09:58] [%emt 00:03:50]}
Ne5+ {[%clk 00:25:56] [%emt 00:00:16]} 47. Ke4 {[%clk 00:10:24] [%emt 00:00:03]}
Nxc4 {[%clk 00:26:13] [%emt 00:00:14]} 48. Nb5 {[%clk 00:08:27] [%emt 00:02:28]}
a4 {[%clk 00:20:55] [%emt 00:05:48]} 49. g4 {[%clk 00:07:59] [%emt 00:00:57]} a3
{[%clk 00:20:25] [%emt 00:01:00]} 50. Nxa3 {[%clk 00:07:38] [%emt 00:00:51]}
Nxa3 {[%clk 00:20:47] [%emt 00:00:08]} 51. g5 {[%clk 00:08:06] [%emt 00:00:02]}
Rd6 {[%clk 00:19:33] [%emt 00:01:44]} 52. f5 {[%clk 00:01:21] [%emt 00:07:15]}
Rd4+ {[%clk 00:19:18] [%emt 00:00:45]} 53. Ke5 {[%clk 00:00:54] [%emt 00:00:56]}
Nc4+ {[%clk 00:19:36] [%emt 00:00:13]} 54. Ke6 {[%clk 00:00:42] [%emt 00:00:41]}
Rd6+ {[%clk 00:16:57] [%emt 00:03:10]} 55. Ke7 {[%clk 00:01:08] [%emt 00:00:03]}
Kc7 {[%clk 00:13:36] [%emt 00:03:52]} 56. g6 {[%clk 00:00:38] [%emt 00:01:00]}
Ne3 {[%clk 00:13:37] [%emt 00:00:28]} 57. Kf8+ {[%clk 00:00:33] [%emt 00:00:35]}
Kd8 {[%clk 00:13:40] [%emt 00:00:27]} 0-1

[Site "Europe Echecs"]